Cogmind - Beta 14 @@@ ROGUE MODE // 2024.11.23 @ 23:51:12 Player: skye Result: Destroyed by B-75 Beast with Magnetic Acceleration Cannon Performance ------------- Evolutions (3) 1500 Regions Visited (7) 1400 Robots Destroyed (70) 350 Value Destroyed (2032) 2032 Prototype IDs (27) 540 Alien Tech Used (0) 0 Bonus (440) 440 TOTAL SCORE: 6262 Bonus ------- Follower Combat Kills 140 Aligned with FarCom 300 Cogmind --------- Core Integrity 0/700 Matter 298/300 Energy 100/100 System Corruption 0% Temperature Cool (12) Movement Walking (120) Location -7/Lower Caves Parts ------- > --- POWER (1) -------- (None) > --- PROPULSION (5) --- Carbon-fiber Leg > --- UTILITY (5) ------ Hacking Suite > --- WEAPON (2) ------- Proton Missile Launcher Powered Hammer > --- INVENTORY (5) ---- Advanced Terrain Scan Processor Plasma Rifle High-powered Shotgun Rocket Launcher Mini Grenade Launcher Peak State ------------ > --- POWER ------------ (None) > --- PROPULSION ------- Carbon-fiber Leg Flexi-carbon Leg Gravmag System > --- UTILITY ---------- Hacking Suite System Restoration Module > --- WEAPON ----------- Plasma Rifle Powered Hammer > --- INVENTORY -------- High-powered Shotgun Proton Missile Launcher Rocket Launcher Mini Grenade Launcher [Rating: 29] Favorites ----------- Power Ion Engine Engine Ion Engine Power Core Light Nuclear Core Propulsion Light Treads Treads Light Treads Leg Carbon-fiber Leg Wheel Wheel Hover Unit Gravmag System Flight Unit Flight Unit Utility Hacking Suite Device ECM Suite Storage Medium Storage Unit Processor Signal Interpreter Hackware Hacking Suite Protection Light Armor Plating Weapon Assault Rifle Energy Gun EM Pulse Gun Energy Cannon Beam Cannon Ballistic Gun Assault Rifle Launcher Mini Grenade Launcher Impact Weapon Powered Hammer Slashing Weapon Longsword +1 Piercing Weapon Spear Build | -11 -10 -10 -10 -9 -8 -7 -7 ------- Run | Yrd Mat Min Exi Min Mat Fac Low Slots Evolved 6 | . . . . . 4 2 . Power . | . . . . . . . . Propulsion 3 | . . . . . 2 1 . Utility 3 | . . . . . 2 1 . Weapon . | . . . . . . . . Parts Attached 88 | 2 11 2 . 4 34 27 8 Power 13 | . 2 . . 3 5 2 1 Engine 8 | . 2 . . 3 2 1 . Core 5 | . . . . . 3 1 1 Reactor . | . . . . . . . . Propulsion 18 | 2 1 1 . . 5 7 2 Treads 8 | 2 1 1 . . 4 . . Leg 3 | . . . . . . 1 2 Wheel 1 | . . . . . 1 . . Hover 3 | . . . . . . 3 . Flight 3 | . . . . . . 3 . Utility 22 | . 2 . . 1 9 9 1 Device 7 | . . . . . 1 5 1 Storage 2 | . 1 . . 1 . . . Processor 2 | . 1 . . . 1 . . Hackware 4 | . . . . . 2 2 . Protection 7 | . . . . . 5 2 . Artifact . | . . . . . . . . Weapon 35 | . 6 1 . . 15 9 4 Energy Gun 10 | . 1 . . . 6 2 1 Energy Cannon 3 | . 2 1 . . . . . Ballistic Gun 6 | . 3 . . . 1 1 1 Ballistic Cannon . | . . . . . . . . Launcher 12 | . . . . . 7 3 2 Special Weapon . | . . . . . . . . Impact Weapon 1 | . . . . . . 1 . Slashing Weapon 2 | . . . . . 1 1 . Piercing Weapon 1 | . . . . . . 1 . Special Melee Weapon . | . . . . . . . . Unidentified Prototypes 1 | . . . . . 1 . . Parts Lost 36 | . 4 . . . 13 12 7 Power 7 | . 2 . . . 2 1 2 Propulsion 13 | . . . . . 4 5 4 Utility 9 | . . . . . 3 5 1 Weapon 7 | . 2 . . . 4 1 . Highest Loss Streak 7 | . 3 . . . 7 7 3 To Critical Strikes 1 | . 1 . . . . . . Average Slot Usage (%) 83 | . 96 99 100 100 89 73 45 Engine 6 | . 13 14 14 14 4 . . Core 2 | . . . . . 4 6 1 Treads 17 | . 28 28 28 28 23 . . Leg 1 | . . . . . . 1 11 Wheel 2 | . . . . . 5 5 . Hover 1 | . . . . . . 3 7 Flight 2 | . . . . . . 9 . Device 1 | . . . . . . 6 . Storage 8 | . 14 14 14 14 9 . . Processor 9 | . 12 14 14 14 13 5 . Hackware 5 | . . . . . 3 15 7 Protection 2 | . . . . . 7 1 . Energy Gun 4 | . 12 . . . 7 . 4 Energy Cannon 5 | . 7 13 14 14 . . . Ballistic Gun 5 | . 6 14 14 14 2 . 1 Launcher 1 | . . . . . 2 5 . Impact Weapon 1 | . . . . . . . 7 Slashing Weapon 1 | . . . . . 4 3 . Peak Build Rating 29 | 6 8 8 8 12 28 28 29 Average Rating 17 | 5 7 7 8 9 22 25 23 On Entrance 12 | 6 6 7 8 8 12 23 26 Naked Turns . | . . . . . . . . Heaviest Build 40 | 14 24 20 20 29 40 39 12 Greatest Support 80 | 40 40 40 40 40 80 18 18 Greatest Overweight (x) 4 | . . . . . 3 4 3 Average Overweight (x) . | . . . . . 1 . . Largest Inventory Capacity 15 | 8 10 10 10 15 15 15 5 Average Capacity 9 | 8 9 10 10 13 15 5 5 Most Carried 15 | 7 10 10 10 15 15 13 5 Average Carried 9 | 5 8 9 9 12 14 5 4 Final Capacity 15 | 8 10 10 10 15 15 5 5 Final Carried 15 | 4 10 10 10 15 13 5 5 Class Distribution -------------------- 66% | Mutant 17% | Hacker-Mutant 16% | Scavenger-Mutant Dominant Class ---------------- Mutant | -10/Materials Mutant | -10/Mines Mutant | -10/Exiles Mutant | -9/Mines Mutant | -8/Materials Hacker-Mutant | -7/Factory Mutant | -7/Lower Caves Resources | -11 -10 -10 -10 -9 -8 -7 -7 ----------- Run | Yrd Mat Min Exi Min Mat Fac Low Matter Collected 1674 | 220 303 45 . 128 517 255 206 Remotely 10 | . . . . . . 10 . Salvage Created 2340 | . 566 136 . 195 1053 273 117 Parts 147 | . 43 11 . 14 66 11 2 Haulers Intercepted 2 | . 2 . . . . . . Recyclers Shooed 1 | . 1 . . . . . . Parts Field Recycled . | . . . . . . . . Retrieved Matter . | . . . . . . . . Parts Self-Destructed 2 | . . . . . . . 2 Prevented . | . . . . . . . . Kills | -11 -10 -10 -10 -9 -8 -7 -7 ------- Run | Yrd Mat Min Exi Min Mat Fac Low Combat Hostiles Destroyed 54 | . 13 5 . 7 19 5 5 Melee 4 | . . . . . 1 2 1 Guns 26 | . 10 2 . 4 7 1 2 Cannons 8 | . 2 3 . 3 . . . AOE 15 | . 1 . . . 11 1 2 Classes Destroyed 13 | . 7 . . 1 3 2 . Worker 2 | . 1 . . . 1 . . Builder 3 | . . . . . 3 . . Tunneler 2 | . 1 . . . . 1 . Hauler 2 | . 2 . . . . . . Recycler 2 | . . . . 1 . 1 . Operator 3 | . 1 . . . 2 . . Watcher 2 | . 1 . . . 1 . . Swarmer 19 | . 6 3 . 7 . . 3 Grunt 23 | . 7 2 . . 14 . . Brawler 1 | . . . . . 1 . . Sentry 6 | . . . . . 4 1 1 Hunter 3 | . . . . . . 2 1 Programmer 2 | . . . . . . 2 . Best Kill Streak 7 | . 7 3 . 4 7 2 2 Combat Bots Only 6 | . 6 3 . 4 3 2 2 Max Kills in Single Turn 3 | . 1 1 . 1 3 1 1 Gunslinging . | . . . . . . . . Exploded 2 | . 1 . . . 2 1 1 Melee 1 | . . . . . 1 1 1 Uniques/NPCs Destroyed . | . . . . . . . . Combat | -11 -10 -10 -10 -9 -8 -7 -7 -------- Run | Yrd Mat Min Exi Min Mat Fac Low Hostile Shots Fired 538 | . 85 23 . 26 162 131 111 Missed 202 | . 32 7 . 6 56 52 49 Damage Taken 4654 | . 536 181 . 155 1719 1182 881 Core 1136 | . 65 56 . 10 279 429 297 Absorbed by Shields . | . . . . . . . . Redirected to Shielding 55 | . . . . . 55 . . Regen/Repaired (Parts) 25 | . . . . . . 25 . Core Remaining (%) 65 | 100 . . . 47 49 . . Volleys Fired 214 | . 54 13 . 13 98 17 19 Largest 2 | . 2 2 . 2 2 1 1 Hottest 100 | . 100 80 . 80 96 63 75 Shots Fired 282 | . 92 22 . 26 105 17 20 Gun 182 | . 69 13 . 13 69 10 8 Cannon 45 | . 23 9 . 13 . . . Launcher 55 | . . . . . 36 7 12 Special . | . . . . . . . . Kinetic 71 | . 31 13 . 13 12 . 2 Thermal 118 | . 23 9 . 13 57 10 6 Explosive 25 | . . . . . 8 7 10 Electromagnetic 68 | . 38 . . . 28 . 2 Robot Hit Streak 13 | . 13 9 . 5 12 6 11 Robot Miss Streak 4 | . 4 3 . 3 3 2 3 Penetration Max . | . . . . . . . . Secondary Targets 1 | . 1 . . . . . . Max Gunslinging Chain 1 | . 1 . . . . . . Shots Hit Robots 181 | . 50 14 . 11 73 20 13 Core Hits 105 | . 24 7 . 8 46 9 11 Critical Kills 1 | . . . . . . . 1 Critical Parts Destroyed 1 | . . . . . 1 . . Critical Strikes 6 | . . . . . 3 2 1 Burn 3 | . . . . . 2 1 . Destroy 1 | . . . . . 1 . . Smash 1 | . . . . . . . 1 Impale 1 | . . . . . . 1 . Melee Attacks 42 | . . . . . 3 35 4 Impact 4 | . . . . . . . 4 Slashing 11 | . . . . . 3 8 . Piercing 27 | . . . . . . 27 . Sneak Attacks 2 | . . . . . . 2 . Combat Hostiles . | . . . . . . . . Follow-up Attacks . | . . . . . . . . Damage Inflicted 4872 | . 914 229 . 188 2303 658 580 Guns 1850 | . 551 120 . 64 842 134 139 Cannons 459 | . 226 109 . 124 . . . Explosions 2167 | . 137 . . . 1407 213 410 Melee 396 | . . . . . 54 311 31 Ramming . | . . . . . . . . Kinetic 590 | . 263 120 . 64 115 . 28 Thermal 1658 | . 363 109 . 124 817 134 111 Explosive 918 | . . . . . 310 213 395 Electromagnetic 1310 | . 288 . . . 1007 . 15 Impact 31 | . . . . . . . 31 Slashing 147 | . . . . . 54 93 . Piercing 218 | . . . . . . 218 . Highest Corruption 1 | . 1 1 1 1 . 1 1 Average Corruption 1 | . 1 1 1 1 . 1 1 Corruption Purged 1 | . . . . . . . 1 Corruption Blocked 6 | . . . . . . 6 . Effects 24 | . 7 5 2 3 . 1 6 Message Errors 7 | . 2 2 . 1 . 1 1 Matter Fused 8 | . 2 2 1 2 . . 1 Heat Flow Errors 1 | . . . 1 . . . . Energy Discharges 2 | . . . . . . . 2 Parts Fused 1 | . . 1 . . . . . Data Loss (minor) 2 | . 1 . . . . . 1 Data Loss (major) 1 | . 1 . . . . . . Misfires 2 | . 1 . . . . . 1 Overload Shots . | . . . . . . . . Overflow Damage 171 | . 6 . . . 5 153 7 Projectiles . | . . . . . . . . Explosions 81 | . 6 . . . 5 63 7 Melee 90 | . . . . . . 90 . Knockbacks . | . . . . . . . . Impact . | . . . . . . . . Kinetic . | . . . . . . . . Secondary . | . . . . . . . . Self-Inflicted Damage 447 | . 26 . . . 86 274 61 Shots 19 | . 1 . . . 10 5 3 Rammed . | . . . . . . . . Targets Rammed . | . . . . . . . . Kicked . | . . . . . . . . Crushed . | . . . . . . . . Highest Temperature 309 | . 309 105 103 90 258 116 50 Average Temperature 66 | . 75 39 56 32 74 66 21 Received Heat Transfer 1290 | . 132 87 . . 873 108 90 Effects 1 | . . . . . 1 . . Energy Bleed 1 | . . . . . 1 . . Siege Activations . | . . . . . . . . Robots Corrupted . | . . . . . . . . Combat Hostiles . | . . . . . . . . Parts Fried 3 | . 1 . . . 2 . . Impact Corruptions . | . . . . . . . . Robots Melted 1 | . . . . . . 1 . Combat Hostiles 1 | . . . . . . 1 . Parts Melted 6 | . . 1 . . 3 1 1 Heat Transferred 3684 | . 681 222 . 259 1902 370 250 Parts Sabotaged . | . . . . . . . . Parts Stolen . | . . . . . . . . Parts Stripped . | . . . . . . . . Power Chain Reactions 7 | . 2 . . . 5 . . Alert | -11 -10 -10 -10 -9 -8 -7 -7 ------- Run | Yrd Mat Min Exi Min Mat Fac Low Peak Influence 314 | . 256 154 . 135 314 169 . Initial 142 | . . 34 . . . 142 . Average 109 | . 119 54 . 69 175 80 . Maximum Alert Level 1 | . 1 . . . 1 . . Low Security (%) 85 | 100 85 100 . 100 57 100 . Level 1 14 | . 14 . . . 42 . . Level 2 . | . . . . . . . . Level 3 . | . . . . . . . . Level 4 . | . . . . . . . . Level 5 . | . . . . . . . . High Security . | . . . . . . . . Max Security . | . . . . . . . . Squads Dispatched 13 | . 1 . . . 7 5 . Investigation 3 | . . . . . 1 2 . Extermination 2 | . . . . . . 2 . Reinforcement 5 | . 1 . . . 3 1 . Assault . | . . . . . . . . Garrison 3 | . . . . . 3 . . Intercept . | . . . . . . . . Searches Triggered . | . . . . . . . . Construction Impeded 1 | . . . . . 1 . . Haulers Reinforced . | . . . . . . . . Active Scanning Responses . | . . . . . . . . Cargo Convoy Interrupts . | . . . . . . . . Stealth | -11 -10 -10 -10 -9 -8 -7 -7 --------- Run | Yrd Mat Min Exi Min Mat Fac Low Distress Signals 5 | . 3 . . . 1 1 . Communications Jammed . | . . . . . . . . Distress Signals . | . . . . . . . . Times Spotted 95 | . 25 5 . 7 35 13 10 Peak Tracking Total 9 | . 6 3 . 3 6 9 3 Tactical Retreats 13 | . 1 . . 1 4 4 3 Traps | -11 -10 -10 -10 -9 -8 -7 -7 ------- Run | Yrd Mat Min Exi Min Mat Fac Low Traps Triggered 3 | . 1 . . . 1 1 . Indirectly . | . . . . . . . . Trap Hack Attempts . | . . . . . . . . Triggered . | . . . . . . . . Disarmed . | . . . . . . . . Reprogrammed . | . . . . . . . . Reused . | . . . . . . . . Traps Extracted . | . . . . . . . . Installed . | . . . . . . . . Triggered . | . . . . . . . . Machines | -11 -10 -10 -10 -9 -8 -7 -7 ---------- Run | Yrd Mat Min Exi Min Mat Fac Low Machines Disabled 4 | . 1 . . . 1 2 . Max in Single Turn 2 | . 1 . . . 1 2 . Garrison Access 1 | . . . . . . 1 . Machines Repaired . | . . . . . . . . Machines Dismantled . | . . . . . . . . Machines Sabotaged . | . . . . . . . . Overloaded Fab Kills . | . . . . . . . . Hacking | -11 -10 -10 -10 -9 -8 -7 -7 --------- Run | Yrd Mat Min Exi Min Mat Fac Low Machines Accessed 30 | . 8 . 1 . 7 13 1 Terminals 19 | . 7 . . . 6 5 1 Fabricators 3 | . . . . . . 3 . Repair Stations 1 | . . . . . . 1 . Recycling Units 3 | . 1 . . . . 2 . Scanalyzers 2 | . . . . . 1 1 . Garrison Access 1 | . . . . . . 1 . Total Hacks 86 | . 27 . 1 . 20 36 2 Successful 47 | . 16 . 1 . 7 21 2 Failed 39 | . 11 . . . 13 15 . Catastrophic 6 | . . . . . 3 3 . Database Lockouts . | . . . . . . . . Manual 60 | . 27 . 1 . 14 18 . Terminals 61 | . 26 . . . 14 19 2 Fabricators 7 | . . . . . . 7 . Repair Stations 2 | . . . . . . 2 . Recycling Units 5 | . 1 . . . . 4 . Scanalyzers 9 | . . . . . 6 3 . Garrison Access 1 | . . . . . . 1 . Terminal Hacks 20 | . 9 . 1 . . 8 2 Record 4 | . 2 . . . . . 2 Part Schematic 4 | . . . . . . 4 . Robot Analysis 1 | . 1 . . . . . . Prototype ID Bank 1 | . 1 . . . . . . Terminal Index 2 | . 1 . . . . 1 . Fabricator Index 1 | . . . . . . 1 . Locate Traps 1 | . . . . . . 1 . Maintenance Status 1 | . 1 . . . . . . Recall Investigation 1 | . 1 . . . . . . Hauler Manifests 1 | . 1 . . . . . . Zone Layout 2 | . 1 . . . . 1 . Derelict Proto ID Bank 1 | . . . 1 . . . . Fabricator Hacks 1 | . . . . . . 1 . Load Schematic 1 | . . . . . . 1 . Repair Station Hacks 2 | . . . . . . 2 . Scan Component 1 | . . . . . . 1 . Repair 1 | . . . . . . 1 . Recycling Unit Hacks 4 | . 1 . . . . 3 . Report Inventory 3 | . 1 . . . . 2 . Retrieve Components 1 | . . . . . . 1 . Scanalyzer 9 | . . . . . 6 3 . Insert Component 3 | . . . . . 2 1 . Analyze 6 | . . . . . 4 2 . Garrison Access Hacks 1 | . . . . . . 1 . Seal Access 1 | . . . . . . 1 . Unauthorized Hacks 10 | . 6 . . . 1 3 . Terminals 10 | . 6 . . . 1 3 . Assimilate 1 | . 1 . . . . . . Botnet 9 | . 5 . . . 1 3 . Fabricators . | . . . . . . . . Repair Stations . | . . . . . . . . Recycling Units . | . . . . . . . . Scanalyzers . | . . . . . . . . Garrison Access . | . . . . . . . . Data Cores Recovered 1 | . . . . . 1 . . Used . | . . . . . . . . Hacking Detections 24 | . 7 . . . 6 10 1 Full Trace Events 3 | . 1 . . . . 2 . Feedback Events . | . . . . . . . . Feedback Blocked . | . . . . . . . . Robot Schematics Acquired . | . . . . . . . . Robots Built . | . . . . . . . . Authchips . | . . . . . . . . Time . | . . . . . . . . Total Robot Build Rating . | . . . . . . . . Part Schematics Acquired 6 | . . . . . 2 4 . Parts Built . | . . . . . . . . Authchips . | . . . . . . . . Time . | . . . . . . . . Total Part Build Rating . | . . . . . . . . Parts Repaired 1 | . . . . . . 1 . Time 44 | . . . . . . 44 . Parts Recycled . | . . . . . . . . Recycled Matter . | . . . . . . . . Retrieved Matter . | . . . . . . . . Retrieved Components 1 | . . . . . . 1 . Parts Scanalyzed 3 | . . . . . 2 1 . Part Schematics Acquired 3 | . . . . . 2 1 . Parts Damaged 1 | . . . . . . 1 . Bothacking | -11 -10 -10 -10 -9 -8 -7 -7 ------------ Run | Yrd Mat Min Exi Min Mat Fac Low Used RIF Installer . | . . . . . . . . Robots Hacked . | . . . . . . . . Non-combat . | . . . . . . . . Combat . | . . . . . . . . Robot Hacks Applied . | . . . . . . . . Relay Couplers Released . | . . . . . . . . Fabnet Peak Effective % . | . . . . . . . . Robots Rewired . | . . . . . . . . Allies Hacked . | . . . . . . . . Hacks Repelled . | . . . . . . . . Allies | -11 -10 -10 -10 -9 -8 -7 -7 -------- Run | Yrd Mat Min Exi Min Mat Fac Low Total Allies 4 | . 1 . . 3 . . . Largest Group 3 | . 1 1 1 3 3 . . Highest-Rated Group 40 | . 10 9 9 40 40 . . Highest-Rated Ally 16 | . 10 9 9 16 16 . . Total Orders . | . . . . . . . . Ally Attacks 24 | . . . . . 24 . . Total Damage 366 | . . . . . 366 . . Kills 4 | . . . . . 4 . . Allies Corrupted . | . . . . . . . . Allies Melted . | . . . . . . . . Intel | -11 -10 -10 -10 -9 -8 -7 -7 ------- Run | Yrd Mat Min Exi Min Mat Fac Low Robot Analysis Total 1 | . 1 . . . . . . Derelict Logs Recovered 7 | . . 1 . 3 . . 3 Drone Launches . | . . . . . . . . Drone Recoveries . | . . . . . . . . Exploration | -11 -10 -10 -10 -9 -8 -7 -7 ------------- Run | Yrd Mat Min Exi Min Mat Fac Low Turns Passed 7201 | 9 1273 641 348 853 1519 1592 966 Spaces Moved 5212 | 4 632 376 217 477 824 1560 1122 Core 126 | . . . . . . 124 2 Treads 2019 | 4 632 376 217 477 313 . . Legs 34 | . . . . . . 17 17 Wheels 850 | . . . . . 511 339 . Hover 1287 | . . . . . . 184 1103 Flight 896 | . . . . . . 896 . Fastest Speed 39 | 160 160 160 160 160 110 39 60 Average Speed 112 | 160 160 160 160 160 138 69 79 Slowest Speed 250 | 160 160 160 160 160 240 250 200 Overloaded Moves . | . . . . . . . . Propulsion Burnouts . | . . . . . . . . Robots Hopped 3 | . . . . . . 3 . Cave-ins Triggered . | . . . . . . . . Exploration Rate (%) 57 | 2 94 68 61 77 58 37 63 Regions Visited 7 Branch Regions 4 Pre-discovered Areas 1 | . . . . . . . 1 Known Exits Taken 5 | . 1 1 1 1 1 . . Unknown Exits Taken 2 | 1 . . . . . 1 . Scrap Searched 4 | . . . . 2 . . 2 Spaces Dug 18 | . . . . . 1 14 3 Terrain Destroyed 259 | . 5 . . . 62 111 81 Melee 18 | . . . . . 1 14 3 Projectile 1 | . . . . . . . 1 AOE 240 | . 5 . . . 61 97 77 Terrain Rammed . | . . . . . . . . Walls Destroyed . | . . . . . . . . Machines Disabled . | . . . . . . . . Actions | -11 -10 -10 -10 -9 -8 -7 -7 --------- Run | Yrd Mat Min Exi Min Mat Fac Low Total 6231 | 9 807 393 218 544 1088 2006 1166 Wait 565 | . 82 2 . 38 111 321 11 Move 5199 | 3 631 375 216 476 823 1553 1122 Hop 3 | . . . . . . 3 . Pick Up 48 | . 16 1 1 7 10 11 2 Fast Attach 32 | . 5 . . . 8 17 2 Attach 23 | 2 3 1 . . 9 6 2 Detach 9 | 2 1 . . . 1 5 . Swap 33 | . 3 1 . 4 17 4 4 Drop 55 | 2 12 . 1 6 8 26 . Fire 214 | . 54 13 . 13 98 17 19 Melee 42 | . . . . . 3 35 4 Ram . | . . . . . . . . Kick . | . . . . . . . . Crush . | . . . . . . . . Escape Stasis 8 | . . . . . . 8 . Rewire . | . . . . . . . . Trap . | . . . . . . . . Miscellaneous . | . . . . . . . . Route ------- -11/Scrapyard -10/Materials (discovered 4 exits: *Mat x2 / *Min x2) -10/Mines (discovered 2 exits: *Mat / *Exi) -10/Exiles -9/Mines (discovered 2 exits: *Mat x2) -8/Materials (discovered 2 exits: *Fac x2) -7/Factory (discovered 2 exits: [*Fac] / *Low) -7/Lower Caves History --------- Turn | Location | Event 6 | -11/Scrapyard | Discovered new exit (range 3) 10 | -11/Scrapyard | Entered Materials 306 | -10/Materials | Build established: Mutant 317 | -10/Materials | Discovered new exit (range 8) 502 | -10/Materials | Lost 3 parts (2p1w) 626 | -10/Materials | Discovered new exit (range 12) 735 | -10/Materials | Discovered new exit (range 15) 1009 | -10/Materials | Discovered new exit (range 15) 1281 | -10/Materials | Identified exit to Mines 1283 | -10/Materials | Entered Mines 1283 | -10/Mines | Accompanied by 1 ally 1647 | -10/Mines | Learned Materials terminal intel 1714 | -10/Mines | Discovered new exit (range 5) 1719 | -10/Mines | Identified exit to Materials 1914 | -10/Mines | Deemed a non-threat by the Exiles lab entrance 1916 | -10/Mines | Discovered new exit (range 5) 1920 | -10/Mines | Identified exit to Exiles 1924 | -10/Mines | Entered Exiles 1924 | -10/Exiles | Accompanied by 1 ally 1964 | -10/Exiles | Met 8R-AWN 1990 | -10/Exiles | Met EX-HEX 2041 | -10/Exiles | Met EX-BIN 2064 | -10/Exiles | Aligned with FarCom system 2065 | -10/Exiles | Given EX-Vault access code 2107 | -10/Exiles | Opened EX-Vault 2119 | -10/Exiles | Found Longsword +1 2155 | -10/Exiles | Warned to stay clear of 0b10 Research branches 2173 | -10/Exiles | Exiles lab attacked by MAIN.C 2259 | -10/Exiles | Discovered new exit (range 10) 2270 | -10/Exiles | Identified exit to Mines 2272 | -10/Exiles | Left Exiles lab with Longsword +1 2272 | -10/Exiles | Entered Mines 2272 | -9/Mines | Accompanied by 1 ally 2677 | -9/Mines | Learned 8 Materials zone layouts 2830 | -9/Mines | Core integrity fell below 50% 3060 | -9/Mines | Learned location of 1 exit from Materials 3077 | -9/Mines | Discovered new exit (range 10) 3099 | -9/Mines | Identified exit to Materials 3099 | -9/Mines | Assisted by bots powering up and referring to "LRC-V3" 3125 | -9/Mines | Entered Materials 3125 | -8/Materials | Accompanied by 3 allies 3125 | -8/Materials | Evolved 4 slots: Propulsion x2, Utility x2 3126 | -8/Materials | Identified exit to Factory 3128 | -8/Materials | Loaded intel: 12 terminal locations 3470 | -8/Materials | Build established: Scavenger-Mutant 3756 | -8/Materials | Garrison activated, responded to threat 3875 | -8/Materials | Lost 7 parts (1p4n1u1w) 4073 | -8/Materials | Build established: Mutant 4154 | -8/Materials | Core integrity fell below 50% 4331 | -8/Materials | Lost 3 parts (1p2w) 4644 | -8/Materials | Entered Factory 4644 | -7/Factory | Evolved 2 slots: Propulsion x1, Utility x1 4915 | -7/Factory | Repaired Proton Missile Launcher 4973 | -7/Factory | Build established: Hacker-Mutant 5225 | -7/Factory | Lost 3 parts (2n1u) 5457 | -7/Factory | Discovered new exit (range 4) 5936 | -7/Factory | Core integrity fell below 50% 5970 | -7/Factory | Lost 7 parts (1p2n4u) 6116 | -7/Factory | Discovered new exit (range 8) 6236 | -7/Factory | Entered Lower Caves 6252 | -7/Lower Caves | Learned Factory trap positions 6256 | -7/Lower Caves | Build established: Scavenger-Mutant 6280 | -7/Lower Caves | Attracted the attention of an 0b10 checkpoint 6335 | -7/Lower Caves | Learned location of Extension (-6) 6353 | -7/Lower Caves | Spotted B-75 Beast 6505 | -7/Lower Caves | Learned Factory emergency access door positions 6671 | -7/Lower Caves | Build established: Mutant 6693 | -7/Lower Caves | Core integrity fell below 20% 7202 | -7/Lower Caves | Destroyed by B-75 Beast with Magnetic Acceleration Cannon Last Messages --------------- 06573_ Imp. Heat Sink melted. 06573_ Y-54 Guardian destroyed. 06577_ Acquired 57 matter. 06581_ Gatling Laser fries itself beyond repair. 06670_ System corrupted: Component data lost. 06702_ S-27 Virus suffers critical hit (Smash). 06702_ S-27 Virus destroyed. 06917_ System corrupted: Energy discharge (-38). 06946_ System corrupted: Energy discharge (-39). 07045_ IGJGF WRHR1Q2K4GXIGJAQ7G>H 07052_ System Restoration Module purges 1% system corruption (0%). 07064_ Acquired Adv. Terrain Scan Processor. 07065_ Acquired 10 matter. 07157_ System Restoration Module destroyed. 07157_ Critical hit (Blast). 07157_ Knocked back. 07168_ Flexi-carbon Leg destroyed. 07177_ Gravmag System destroyed. 07178_ Acquired 3 matter. Map ----- +----------------------------------------------------+ | ???????????????????????????????????????????## ### | | ???????????????????????????????????????????# # # | | ???????????????????????????????????????????# # | | ???????????????????????????????????????????### | | ????????????????????????????????????????????# | | ????????????????????????????????????????????# | | ????????????????????????????????????????????# | | ????????????????????????????????????????????## # # | | ?????????????????????????????????????????????### | | ???????????????????????????????????????????????## | | ??????????????????????????????????????????????## | | ?????????????????????????????????????????????## | | ????????????????????????????????????????????## | | ??????????????????????????????????????????### | | ?????????????????????????????????????????##" | | ????????????????????????????????????????## | | ???????????????????????????????????????## # # | | ??????????????????????????????????????## ## | | ?????????????????????????????????????## # ### | | ????????????????????????????????????## ###?# | | ????????????????????????????#####???# ####???? | | ???????????????????????????## #;##### ####??? | | ??????????????????????###### ## # #??? | | ??????????????????????# ;## ### ##??? | | ??????????????????????# ;## ## ###### | | ??????????????????????# @ #"## ## % ## # | | ??????????????????????#% ## ## # # # # | | ??????????????????????# ;## ## # # | | ??????????????????????# ; ## # # | | ??????????????????????#####; ;BB % % #### | | ??????????????????????????#;; BB ! ## " | | ??????????????????????????# ;###! # #" | | ?????????????????????????## ####?# ## | | ?????????????????????????# #????## # | | ?????????????????????????# ##?????## | | ?????????????????????????# %####???????# | | ?????????????????????????### #??????????## # | | ???????????????????????????# #??????????## ## | | ???????????????????????????# ########?### # | | ???????????????????????????# ### ## # | | ???????????????????????????####### ## # #### | | ?????????????????????????????????# ## ##??? # | | ?????????????????????????????????# ### ##???? # | | ?????????????????????????????????# #?# #????? ## | | ?????????????????????????????????# #?# #?????##? | | ?????????????????????????????????# #?# #######?# | | ?????????????????????????????????#] ### ## ### | | ?????????????????????????????????# !## # # ## | | ?????????????????????????????????#!] # # | | ?????????????????????????????????# ## | +----------------------------------------------------+ Best States ------------- Heat Dissipation 61 Energy Generation 16 Energy Capacity 290 Matter Stores 300 Matter Capacity 300 Sight Range 16 Terrain Scan Density 10 ECM Strength 1 Corruption Block 8 Armor Coverage 225 Propulsion Shielding 33 Evasion (%) 62 Recoil Reduction 4 Offensive Hacking 30 Item Schematics ----------------- Flight Unit | -8/Materials | Scanalyzed Hacking Suite | -8/Materials | Scanalyzed Missile Launcher | -7/Factory | Hacked Lgt. Nuclear Core | -7/Factory | Hacked System Shield | -7/Factory | Hacked Gauss Rifle | -7/Factory | Scanalyzed Robot Schematics ------------------ None Fabricated ------------ Nothing Alien Tech Used ----------------- None Achievements -------------- None Challenges ------------ None Game ------ Seed PhysicsDeepPlatform Manual? 0 Play Time 00:56:32 Cumulative 61.5 hours Start 2024.11.23 @ 22:54:54 End 2024.11.23 @ 23:51:12 Sessions 1 Manual Loads 0 Difficulty Rogue Special Mode None Game No. 87 Rogue 43 Adventurer 44 Explorer 0 Win Type - Total 0 Types 0/0/0/0/0/0/0/0/0 Lore% 18 Gallery% 44 Achievement% 32 Wizard Run 0 Options --------- Layout 1 ASCII 0 Keyboard 1 Movement Vi Keybinds 0 Fullscreen 1 Font 24/Terminus Map View 50x40 Zoom Use 0% Tactical HUD 1 Map Filters NONE Filters NONE Steam 1 RUN: d86b1480-c900-4315-8fa2-90e79b09bda2